bitfinex/quotes_ETHUSD_20250413
["timestamp","ask_amount","ask_price","bid_price","bid_amount"]
[1744569179478,6.13987,1628.7,1628.4,6.9728]
[1744569179682,6.1405,1628.6,1628.4,6.16]
[1744569179907,6.13993,1628.7,1628.4,6.16]
[1744569180197,3.0,1628.8,1628.5,12.28082]
[1744569180342,3.0,1628.8,1628.5,6.14033]
[1744569180543,9.13954,1628.8,1628.4,13.531089]
[1744569180791,15.27937,1628.8,1628.4,13.531089]
[1744569180964,6.14003,1628.7,1628.4,12.30096]
[1744569181161,6.14061,1628.6,1628.4,6.16]
[1744569181364,6.14053,1628.6,1628.4,6.16]
[1744569181583,6.14062,1628.5,1628.4,6.16]
[1744569181763,12.28106,1628.6,1628.4,6.16]
[1744569182089,9.1395,1628.8,1628.4,6.16]
[1744569182090,3.0,1628.8,1628.5,0.8151]
[1744569182294,9.13963,1628.8,1628.5,0.8151]
[1744569182450,6.90769,1628.9,1628.5,0.8151]
[1744569182651,13.04704,1628.9,1628.6,6.14011]
[1744569183075,6.13951,1628.8,1628.5,6.95557]
[1744569183354,6.830311,1628.8,1628.5,6.95557]
[1744569184888,0.690801,1628.8,1628.5,0.8151]
[1744569185091,6.14,1628.7,1628.4,12.30092]
[1744569185253,6.13948,1628.8,1628.4,6.16]
[1744569185454,6.13948,1628.8,1628.5,6.14045]
[1744569186515,3.0,1628.9,1628.7,6.13951]
[1744569186681,7.87,1629.0,1628.7,6.90381]
[1744569187099,14.00889,1629.0,1628.7,0.7643]
[1744569187616,6.13912,1628.9,1628.7,0.7643]
[1744569187917,6.13948,1628.8,1628.5,6.14058]
[1744569188131,6.13948,1628.8,1628.5,6.90488]
[1744569188421,12.27859,1628.9,1628.5,13.04536]
[1744569189021,14.00879,1629.0,1628.6,6.1401]
[1744569189330,14.00879,1629.0,1628.8,6.13948]
[1744569189331,7.87,1629.0,1628.8,6.13948]
[1744569189519,7.87,1629.0,1628.7,6.13968]
[1744569189721,14.00874,1629.0,1628.7,6.13968]
[1744569189918,14.00874,1629.0,1628.6,6.8306]
[1744569190078,14.00874,1629.0,1628.6,6.14016]
[1744569190281,15.709614,1629.0,1628.6,12.30016]
[1744569190609,6.13915,1628.9,1628.6,12.30016]
[1744569191014,6.13955,1628.8,1628.6,6.16]
[1744569191341,13.09027,1628.8,1628.6,6.16]
[1744569191546,9.13986,1628.7,1628.6,6.16]
[1744569191698,6.14113,1628.4,1628.2,4.10291748]
[1744569192325,12.28236,1628.4,1628.2,4.10291748]
[1744569192525,6.14137,1628.3,1628.2,4.10291748]
[1744569192727,6.95155,1628.5,1628.2,4.10291748]
[1744569193034,6.95155,1628.5,1628.2,10.24452748]
[1744569193251,8.260733,1628.5,1628.2,4.10291748]
[1744569194747,6.14099,1628.4,1628.1,6.16]
[1744569195048,12.28336,1628.3,1628.1,6.16]
[1744569195622,6.14175,1628.2,1628.1,6.16]
[1744569196036,6.14175,1628.2,1627.8,6.16]
[1744569196037,6.95354,1628.1,1627.8,6.16]
[1744569196349,6.14288,1627.9,1627.8,6.16]
[1744569196647,6.14288,1627.9,1627.7,4.10291748]
[1744569196866,6.14326,1627.8,1627.7,4.10291748]
[1744569197051,9.14326,1627.8,1627.7,4.10291748]
[1744569197261,12.097279,1627.8,1627.7,4.10291748]
[1744569197813,12.647279,1627.8,1627.7,4.10291748]
[1744569198960,13.09888535,1627.8,1627.7,4.10291748]
[1744569199154,6.14439,1627.5,1627.4,4.10291748]
[1744569199369,19.608346,1627.5,1627.4,4.10291748]
[1744569206512,19.608346,1627.5,1627.1,0.02]
[1744569206513,6.14552,1627.2,1627.1,0.02]
[1744569206708,6.95662,1627.2,1627.1,0.02]
[1744569207221,9.913956,1627.5,1627.1,0.7787]
[1744569207515,3.0,1627.3,1627.1,0.7787]
[1744569208018,9.14527,1627.3,1627.1,0.02]
[1744569208308,6.14552,1627.2,1627.1,0.02]
[1744569208665,9.14552,1627.2,1627.1,0.02]
[1744569210309,9.92242,1627.2,1627.1,0.02]
[1744569210515,11.529189,1627.2,1627.1,0.02]
[1744569210665,10.752289,1627.2,1627.1,0.02]
[1744569212105,3.0,1627.2,1627.1,0.02]
[1744569212282,7.859,1627.3,1627.1,0.7896]
[1744569212489,7.859,1627.3,1627.1,13.08087]
[1744569212688,6.14414,1627.6,1627.4,0.7696]
[1744569212894,6.14439,1627.5,1627.4,0.7696]
[1744569213090,6.14424,1627.6,1627.2,6.91496]
[1744569213292,8.31345746,1627.8,1627.3,6.14512]
[1744569213293,6.14368,1627.7,1627.3,6.14512]
[1744569213508,6.14368,1627.7,1627.3,12.29024]
[1744569213712,6.14368,1627.7,1627.4,6.14471]
[1744569213928,3.0,1627.7,1627.4,6.14471]
[1744569214102,17.0024,1627.8,1627.6,6.14401]
[1744569214103,7.859,1627.8,1627.6,6.14401]
[1744569214423,7.859,1627.8,1627.7,6.14363]
[1744569214602,10.859,1627.8,1627.7,6.14363]
[1744569214800,10.859,1627.8,1627.6,13.609665]
[1744569215009,10.809,1627.8,1627.6,13.609665]
[1744569215215,7.809,1627.8,1627.6,13.609635]
[1744569215398,66.71082,1628.2,1627.8,6.143]
[1744569215735,6.14248,1628.1,1627.7,8.2741735]
[1744569216013,6.14259,1628.0,1627.7,8.2741735]
[1744569217021,66.7108,1628.2,1627.8,6.14308]
[1744569217203,72.85279,1628.2,1627.8,6.14308]
[1744569217390,72.85279,1628.2,1627.8,7.59094636]
[1744569218032,60.569,1628.2,1627.9,6.1427]
[1744569218320,6.14229,1628.1,1627.8,1.44786636]
[1744569218879,6.14229,1628.1,1627.8,7.59106636]
[1744569219124,66.71081,1628.2,1627.8,7.59106636]
[1744569219276,60.569,1628.2,1628.1,0.7778]
[1744569219490,7.86,1628.2,1628.1,6.91992]
[1744569219835,9.14157,1628.3,1628.1,0.7778]
[1744569220003,6.14226,1628.1,1627.9,7.69690664]
[1744569220200,6.14144,1628.3,1628.0,6.14247]
[1744569220399,6.14105,1628.4,1628.0,13.66887766]
[1744569220934,6.14105,1628.4,1628.1,6.14212]
[1744569221226,9.14062,1628.5,1628.2,0.7778]
[1744569221403,9.14062,1628.5,1628.2,6.9195]
[1744569222130,9.14062,1628.5,1628.2,0.7778]
[1744569222440,6.14111,1628.4,1628.2,0.7778]
[1744569222587,3.0,1628.7,1628.4,6.14068]
[1744569222787,8.671,1629.2,1628.6,0.7778]
[1744569223022,6.13856,1629.1,1628.6,13.07767]
[1744569223258,6.13856,1629.1,1628.7,6.13984]
[1744569223396,12.27721,1629.1,1628.7,6.13966]
[1744569224420,6.13877,1629.0,1628.7,6.13966]
[1744569225193,12.27776,1629.0,1628.6,13.07797]
[1744569225397,6.13877,1629.0,1628.6,19.21803]
[1744569225705,6.13874,1629.0,1628.7,6.13967]
[1744569225901,6.13874,1629.0,1628.8,0.8258]
[1744569226105,6.13827,1629.2,1628.9,6.1391]
[1744569226525,6.13911,1628.9,1628.8,0.8258]
[1744569226722,6.13911,1628.9,1628.7,6.9858]
[1744569226927,12.2785,1628.9,1628.7,6.9858]
[1744569228038,6.13911,1628.9,1628.7,6.9858]
[1744569229133,6.13845,1629.1,1628.8,6.13934]
[1744569229327,6.13874,1629.0,1628.7,13.12559]
[1744569229529,12.27774,1629.0,1628.7,6.9858]
[1744569229831,6.13874,1629.0,1628.7,6.9858]
[1744569230029,6.13924,1628.9,1628.7,6.9858]
[1744569230400,6.13948,1628.8,1628.7,0.8258]
[1744569230728,6.14024,1628.6,1628.5,6.16]
[1744569230959,6.14003,1628.7,1628.5,6.16]
[1744569231126,6.13844,1629.1,1628.7,6.13985]
[1744569231321,0.8278,1629.3,1628.9,0.8258]
[1744569231322,6.13804,1629.2,1628.9,0.8258]
[1744569231524,6.96547,1629.3,1628.9,6.9647]
[1744569231525,12.27546,1629.3,1628.9,6.9647]
[1744569232155,6.13803,1629.2,1628.9,6.9647]
[1744569232452,12.27621,1629.2,1628.9,0.8258]
[1744569233359,12.27621,1629.2,1628.7,6.13981]
[1744569233555,6.13897,1629.0,1628.7,6.13981]
[1744569233860,12.27801,1629.0,1628.6,18.44016]
[1744569234057,6.13923,1628.9,1628.6,6.16]
[1744569234426,6.13923,1628.9,1628.6,12.30019]
[1744569235838,6.1396,1628.8,1628.6,6.16]
[1744569236043,12.27939,1628.8,1628.6,6.16]
[1744569236356,6.13986,1628.7,1628.6,6.16]
[1744569236558,6.1396,1628.8,1628.6,6.16]
[1744569239675,12.27939,1628.8,1628.6,6.16]
[1744569240251,12.27939,1628.8,1628.4,19.26755]
[1744569240562,6.1396,1628.8,1628.5,6.14047]
[1744569240746,6.1396,1628.8,1628.5,12.28096]
[1744569240947,6.1396,1628.8,1628.5,6.14047]
[1744569241135,6.1396,1628.8,1628.5,12.28092]
[1744569241531,6.1396,1628.8,1628.5,6.14045]
[1744569242570,12.27929,1628.8,1628.5,6.14045]
[1744569242873,6.1396,1628.8,1628.4,15.4821345]
[1744569243085,6.13989,1628.7,1628.4,15.4821345]
[1744569243612,7.366932,1628.9,1628.4,9.3412245]
[1744569243900,13.506212,1628.9,1628.5,6.14026]
[1744569245497,6.13956,1628.8,1628.4,19.26762]
[1744569245703,3.0,1629.0,1628.4,6.9858]
[1744569245704,7.832,1629.0,1628.4,6.9858]
[1744569245919,7.832,1629.0,1628.8,6.13933]
[1744569246122,6.13814,1629.2,1628.9,6.139]
[1744569246590,12.27635,1629.2,1628.8,18.43892]
[1744569246786,6.13838,1629.1,1628.8,12.29937]
[1744569247209,6.13897,1629.0,1628.8,6.16]
[1744569247393,6.13911,1628.9,1628.8,6.16]
[1744569248805,3.0,1629.1,1628.8,6.9505]
[1744569249014,6.13867,1629.1,1628.8,6.9505]
[1744569249210,6.13885,1629.0,1628.8,6.16]
[1744569249397,6.13911,1628.9,1628.8,6.16]
[1744569250515,6.13885,1629.0,1628.8,6.16]
[1744569250829,12.2778,1629.0,1628.8,6.16]
[1744569251425,0.613867,1629.1,1628.9,6.13906]
[1744569251581,9.1386,1629.1,1628.8,6.16]
[1744569251981,9.1386,1629.1,1628.7,18.43942]
[1744569252220,3.0,1629.1,1628.7,8.082962]
[1744569252404,6.13873,1629.0,1628.7,6.16]
[1744569252782,15.2769,1629.1,1628.7,12.29974]
[1744569253132,15.2769,1629.1,1628.7,18.43948]
[1744569253487,6.13875,1629.0,1628.7,12.29974]
[1744569254724,13.97012,1629.2,1628.9,6.13897]
[1744569255034,7.832,1629.2,1629.0,6.93949]
[1744569255326,7.832,1629.2,1629.0,0.8009]
[1744569255480,6.13846,1629.1,1628.8,6.94032]
[1744569255685,6.13846,1629.1,1628.8,8.4426536]
[1744569256427,12.27703,1629.1,1628.8,8.4426536]
[1744569256622,12.27703,1629.1,1628.8,6.94032]
[1744569256839,6.13846,1629.1,1628.8,6.94032]
[1744569257147,6.13846,1629.1,1628.8,13.07965]
[1744569257333,20.862,1629.2,1628.8,13.07965]
[1744569257931,14.72377,1629.2,1628.9,6.13909]
[1744569258304,20.86196,1629.2,1628.9,6.13909]
[1744569258701,6.13841,1629.1,1628.8,6.94023]
[1744569259531,6.1384,1629.1,1628.8,6.94023]
[1744569260286,6.13913,1628.9,1628.7,6.16]
[1744569260838,6.13984,1628.8,1628.4,13.09875]
[1744569261288,6.13986,1628.7,1628.4,13.09875]
[1744569261487,2.086217,1629.1,1628.5,6.20202257]
[1744569261690,7.832,1629.2,1628.9,0.7979]
[1744569261924,6.13847,1629.1,1628.9,0.7979]
[1744569262222,6.1389,1629.0,1628.7,6.9579]
[1744569262412,6.13842,1629.1,1628.7,13.09774]
[1744569262609,6.13886,1629.0,1628.7,13.09774]
[1744569262924,6.13948,1628.8,1628.7,6.16]
[1744569263082,6.13944,1628.9,1628.5,12.30047]
[1744569263287,0.613886,1629.0,1628.5,12.30047]
[1744569263611,6.13978,1628.8,1628.5,6.16]
[1744569263812,6.14099,1628.4,1628.3,6.16]
[1744569264020,6.14099,1628.4,1628.1,4.10291748]
[1744569264021,6.14175,1628.2,1628.1,4.10291748]
[1744569266814,17.73455,1628.2,1628.1,4.10291748]
[1744569266986,22.571245,1628.2,1628.1,4.10291748]
[1744569267381,22.571245,1628.2,1628.1,7.48e-06]
[1744569267624,26.0566595,1628.2,1628.1,7.48e-06]
[1744569269028,26.0566595,1628.2,1627.3,6.14503]
[1744569269029,6.14395,1627.7,1627.3,6.14503]
[1744569269324,6.14403,1627.6,1627.3,6.14503]
[1744569269685,6.14403,1627.6,1627.2,11.230065]
[1744569269888,6.14403,1627.6,1627.2,9.2989625]
[1744569270386,6.14403,1627.6,1627.2,15.4443025]
[1744569271128,12.28835,1627.6,1627.2,9.2988325]
[1744569271424,7.813,1627.7,1627.2,0.7979]
[1744569271630,6.14502,1627.4,1627.1,6.18]
[1744569272016,12.29,1627.4,1627.1,6.18]
[1744569272633,6.14535,1627.3,1627.1,0.02]
[1744569272945,6.14552,1627.2,1627.1,0.02]
[1744569273152,16.95952,1627.2,1627.1,0.02]
[1744569274836,10.814,1627.2,1627.1,0.02]
[1744569275964,7.814,1627.2,1627.1,0.02]
[1744569276246,7.814,1627.2,1627.1,6.1659]
[1744569276423,3.0,1627.4,1627.2,6.14542]
[1744569276819,6.92683,1627.6,1627.2,12.2908]
[1744569277047,6.92683,1627.6,1627.3,6.14505]
[1744569277348,3.0,1627.5,1627.3,6.14505]
[1744569277505,13.95966,1627.7,1627.3,1.308833]
[1744569277506,13.95983,1627.7,1627.3,1.308833]
[1744569277833,13.95983,1627.7,1627.3,7.453703]
[1744569278035,3.0,1627.6,1627.3,13.598733]
[1744569278229,3.0,1627.6,1627.3,7.453703]
[1744569278422,3.0,1627.6,1627.3,13.598733]
[1744569278951,3.0,1627.6,1627.3,7.453703]
[1744569279449,15.28851,1627.6,1627.2,6.94337]
[1744569279650,9.14417,1627.6,1627.3,6.14514]
[1744569279949,3.0,1627.6,1627.3,6.14497]
[1744569280326,3.0,1627.6,1627.3,12.28997]
[1744569280647,3.0,1627.6,1627.3,6.14497]
[1744569281266,6.14499,1627.4,1627.1,0.02]
[1744569281551,12.2901,1627.4,1627.1,0.02]
[1744569281763,6.14552,1627.2,1627.1,0.02]
[1744569281941,6.14531,1627.3,1627.1,0.02]
[1744569282110,12.29071,1627.3,1627.1,0.02]
[1744569282314,0.8239,1627.5,1627.1,0.02]
[1744569282315,6.14481,1627.4,1627.1,6.16573]
[1744569282614,0.696871,1627.4,1627.1,0.02]
[1744569282861,13.11289,1627.5,1627.1,6.16572]
[1744569283220,6.14482,1627.4,1627.1,6.16572]
[1744569283439,6.14482,1627.4,1627.1,0.02]
[1744569283757,6.14515,1627.3,1627.1,0.02]
[1744569283958,6.14552,1627.2,1627.1,0.02]
[1744569284160,12.29067,1627.3,1627.1,0.02]
[1744569284457,6.14552,1627.2,1627.1,0.02]
[1744569284664,17.77652,1627.2,1627.1,0.02]
[1744569284833,18.32652,1627.2,1627.1,0.02]
[1744569285230,17.77652,1627.2,1627.1,0.02]
[1744569287329,6.14796,1626.6,1626.3,0.7616]
[1744569287613,12.911486,1626.5,1626.2,6.91068]
[1744569287775,6.1487,1626.4,1626.2,0.7616]
[1744569287979,12.2967,1626.5,1626.2,0.7616]
[1744569288174,6.14833,1626.5,1626.2,6.91089]
[1744569288383,12.29675,1626.5,1626.2,0.7616]
[1744569288585,13.607925,1626.5,1626.2,0.7616]
[1744569289311,16.11086,1626.6,1626.2,6.91058]
[1744569289813,16.11086,1626.6,1626.2,13.05983]
[1744569290114,9.96287,1626.6,1626.2,13.05983]
[1744569290616,10.42068399,1626.6,1626.2,13.05983]
[1744569291026,16.56868399,1626.6,1626.2,13.05983]
[1744569291332,3.0,1626.6,1626.4,6.14847]
[1744569291490,13.96442,1626.7,1626.4,6.14847]
[1744569293100,7.817,1626.7,1626.4,6.14843]
[1744569293412,7.817,1626.7,1626.3,6.2214813]
[1744569293615,7.817,1626.7,1626.5,6.14813]
[1744569294191,6.14795,1626.6,1626.3,12.30875]
[1744569294943,12.29593,1626.6,1626.3,12.30875]
[1744569295228,6.14827,1626.5,1626.3,6.16]
[1744569295794,12.29661,1626.5,1626.3,6.16]
[1744569296341,6.14827,1626.5,1626.3,6.16]
[1744569296627,13.526255,1626.5,1626.3,6.16]
[1744569296830,6.14827,1626.5,1626.3,6.16]
[1744569297428,6.14787,1626.6,1626.3,12.3089]
[1744569297633,20.09384,1626.6,1626.3,12.3089]
[1744569297995,13.94587,1626.6,1626.3,12.3089]
[1744569298228,13.94587,1626.6,1626.3,6.16]
[1744569298531,6.14823,1626.5,1626.3,6.16]
[1744569298730,20.09397,1626.6,1626.3,6.16]
[1744569298922,20.09397,1626.6,1626.2,19.22003]
[1744569299123,6.14818,1626.5,1626.2,13.07074]
[1744569299301,6.14818,1626.5,1626.2,19.21988]
[1744569299635,6.14818,1626.5,1626.2,13.07074]
[1744569300547,6.14818,1626.5,1626.1,0.02]
[1744569300548,6.14905,1626.3,1626.1,0.02]
[1744569300696,6.1493,1626.2,1626.1,0.02]
[1744569301613,9.1493,1626.2,1626.1,0.02]
[1744569302601,9.1493,1626.2,1626.1,0.13913143]
[1744569302811,9.1493,1626.2,1626.1,0.02]
[1744569303013,10.679135,1626.2,1626.1,0.13913143]
[1744569303303,11.14172113,1626.2,1626.1,0.13913143]
[1744569304941,16.77201613,1626.2,1626.1,0.13913143]
[1744569305400,11.93532113,1626.2,1626.1,0.13913143]
[1744569305599,12.29821,1626.3,1626.1,0.13913143]
[1744569305805,6.1493,1626.2,1626.1,0.02]
[1744569307054,12.74877845,1626.3,1626.1,0.02]
[1744569307250,0.45059845,1626.3,1626.1,0.02]
[1744569307476,12.29751,1626.4,1626.1,0.02]
[1744569307868,6.14893,1626.3,1626.1,0.02]
[1744569308242,6.1493,1626.2,1626.1,0.02]
[1744569309179,6.6133881,1626.3,1626.1,0.02]
[1744569309384,2.803005,1626.5,1626.1,0.8356]
[1744569309584,2.803005,1626.5,1626.1,7.74625775]
[1744569309585,13.9493,1626.5,1626.1,7.74625775]
[1744569309749,6.14874,1626.4,1626.1,0.8356]
[1744569310085,6.1493,1626.2,1626.1,0.02]
[1744569310282,6.14904,1626.3,1626.1,0.02]
[1744569310444,12.29815,1626.3,1626.1,0.02]
[1744569311164,6.14904,1626.3,1626.1,0.02]
[1744569311660,0.46261336,1626.4,1626.1,0.02]
[1744569311845,13.94925,1626.5,1626.2,0.8156]
[1744569312049,6.14866,1626.4,1626.2,0.8156]
[1744569312681,15.644175,1626.5,1626.2,0.8156]
[1744569313090,6.14866,1626.4,1626.2,0.8156]
[1744569313247,6.14892,1626.3,1626.2,0.8156]
[1744569313444,12.29757,1626.4,1626.1,0.02]
[1744569313673,6.14866,1626.4,1626.1,0.02]
[1744569313879,3.0,1626.6,1626.3,0.8156]
[1744569314078,6.14834,1626.5,1626.3,6.9756]
[1744569314287,6.14854,1626.4,1626.3,6.16]
[1744569314488,6.60530692,1626.5,1626.3,6.16]
[1744569314691,15.29587,1626.6,1626.3,6.16]
[1744569315189,9.14786,1626.6,1626.3,6.16]
[1744569315414,0.7797,1626.7,1626.3,7.390911]
[1744569315563,7.8,1626.9,1626.7,6.14727]
[1744569315749,7.8,1626.9,1626.7,6.90707]
[1744569316891,61.85298,1627.1,1626.7,6.98126759]
[1744569316892,52.707,1627.1,1626.7,6.98126759]
[1744569317057,52.707,1627.1,1626.9,6.14658]
[1744569317690,52.707,1627.1,1627.0,6.14628]
[1744569318077,58.85305,1627.1,1626.7,13.06707]
[1744569318255,6.14634,1627.0,1626.7,13.06707]
[1744569318452,64.99933,1627.1,1626.7,19.21431]
[1744569318665,58.85305,1627.1,1626.8,6.14703]
[1744569320103,58.85305,1627.1,1626.9,0.12490376]
[1744569320705,52.707,1627.1,1626.9,0.12490376]
[1744569321210,52.707,1627.1,1626.9,6.27154376]
[1744569321627,0.7975,1627.6,1627.2,6.14535]
[1744569321769,6.1445,1627.5,1627.2,6.14552]
[1744569322169,6.14477,1627.4,1627.3,0.12490376]
[1744569322886,6.14477,1627.4,1627.0,13.05749]
[1744569323573,6.14564,1627.2,1627.0,0.7651]
[1744569324107,12.29143,1627.2,1626.9,6.16]
[1744569324568,6.14606,1627.1,1626.8,13.07206]
[1744569324771,12.29229,1627.1,1626.8,6.9251]
[1744569325068,6.14634,1627.0,1626.8,6.9251]
[1744569325273,6.14634,1627.0,1626.8,6.16]
[1744569325498,12.29299,1627.0,1626.8,6.16]
[1744569325707,6.14634,1627.0,1626.8,6.16]
[1744569325874,12.29281,1627.0,1626.8,6.16]
[1744569326277,6.14665,1626.9,1626.8,6.16]
[1744569326507,14.4248539,1627.0,1626.8,6.16]
[1744569326708,6.14665,1626.9,1626.8,6.16]
[1744569328286,6.14672,1626.9,1626.6,0.7651]
[1744569328493,6.14629,1627.0,1626.6,6.9126]
[1744569328679,6.14629,1627.0,1626.6,14.36748]
[1744569329114,6.60270673,1627.0,1626.6,14.36748]
[1744569329279,7.798,1627.1,1626.7,6.20870295]
[1744569329484,7.798,1627.1,1626.8,6.14685]
[1744569329679,13.94402,1627.1,1626.8,6.14685]
[1744569330179,7.4240603,1627.5,1627.0,0.8053]
[1744569330406,7.4240603,1627.5,1627.1,12.29144]
[1744569330407,12.2892,1627.5,1627.1,12.29144]
[1744569330711,6.1448,1627.4,1627.1,6.14572]
[1744569331513,12.28909,1627.5,1627.2,0.39298198]
[1744569331713,12.28909,1627.5,1627.1,12.29149]
[1744569332014,12.28909,1627.5,1627.2,0.39374389]
[1744569332379,6.14451,1627.5,1627.1,14.217169]
[1744569332579,12.2891,1627.5,1627.3,0.39374389]
[1744569332877,12.2891,1627.5,1627.1,14.217169]
[1744569333075,6.14451,1627.5,1627.2,6.53923389]
[1744569333286,12.28911,1627.5,1627.2,8.00029718]
[1744569334205,0.8138,1627.9,1627.3,0.8053]
[1744569334416,13.11908144,1628.1,1627.7,0.8053]
[1744569334616,6.14283,1628.0,1627.7,6.9653]
[1744569334816,12.28568,1628.0,1627.8,0.39156714]
[1744569335875,6.14272,1628.0,1627.8,0.39156714]
[1744569336094,12.28542,1628.0,1627.8,0.39156714]
[1744569336740,6.1427,1628.0,1627.8,0.39156714]
[1744569337329,6.1427,1628.0,1627.8,1.12725385]
[1744569337742,7.774,1628.1,1627.9,6.14269]
[1744569338055,6.9546,1628.5,1628.1,6.14194]
[1744569338337,10.21096761,1628.6,1628.2,12.72115636]
[1744569338510,10.21096761,1628.6,1628.3,6.94642]
[1744569338511,4.07068761,1628.6,1628.3,6.94642]
[1744569339041,10.21099761,1628.6,1628.4,0.376446]
[1744569339240,6.14062,1628.5,1628.4,0.376446]
[1744569339448,6.95539,1628.3,1627.9,13.10805]
[1744569339614,6.14192,1628.2,1627.9,6.9653]
[1744569339938,6.14192,1628.2,1628.0,0.35752849]
[1744569340538,6.95446,1628.5,1628.1,6.14176]
[1744569340741,3.0,1628.5,1628.2,6.14159]
[1744569340942,3.0,1628.5,1628.3,0.35774574]
[1744569341113,9.14062,1628.5,1628.3,0.35774574]
[1744569341620,6.14045,1628.6,1628.2,6.94701]
[1744569341943,6.14062,1628.5,1628.3,0.35774574]
[1744569342328,12.28101,1628.6,1628.3,0.35774574]
[1744569342743,6.14099,1628.4,1628.3,0.35774574]
[1744569343145,6.89639,1628.4,1628.3,0.35774574]
[1744569345548,6.14099,1628.4,1628.3,0.35774574]
[1744569346814,12.28146,1628.5,1628.3,0.35774574]
[1744569347016,6.14007,1628.7,1628.3,7.90888031]
[1744569347323,6.14007,1628.7,1628.4,6.14091]
[1744569347517,6.14007,1628.7,1628.4,0.06140214]
[1744569347717,6.14007,1628.7,1628.5,0.35774574]
[1744569348353,6.14024,1628.6,1628.5,0.35774574]
[1744569348954,6.14007,1628.7,1628.5,0.35774574]
[1744569349155,6.14027,1628.6,1628.4,6.16]
[1744569349334,6.14027,1628.6,1628.5,0.35774574]
[1744569350565,6.14007,1628.7,1628.5,0.35774574]
[1744569350925,12.28018,1628.7,1628.5,0.35774574]
[1744569351136,12.28018,1628.7,1628.4,6.16]
[1744569351340,12.28018,1628.7,1628.5,0.35774574]
[1744569351569,7.769,1628.8,1628.5,6.14046]
[1744569351767,7.769,1628.8,1628.5,1.2361864]
[1744569352043,6.14002,1628.7,1628.6,0.35383579]
[1744569352362,6.14035,1628.6,1628.4,6.16]
[1744569352532,6.14062,1628.5,1628.4,6.16]
[1744569355546,6.14035,1628.6,1628.4,6.16]
[1744569355765,6.14062,1628.5,1628.4,6.16]
[1744569356379,6.14035,1628.6,1628.4,6.16]
[1744569356599,6.14035,1628.6,1628.4,6.776]
[1744569356899,6.13955,1628.8,1628.4,6.16]
[1744569357054,12.27933,1628.8,1628.5,0.7951]
[1744569357557,6.13989,1628.7,1628.5,0.7951]
[1744569357879,12.28004,1628.7,1628.5,0.7951]
[1744569358068,6.13989,1628.7,1628.4,6.16]
[1744569358594,6.13862,1629.1,1628.8,0.7951]
[1744569358793,6.13874,1629.0,1628.8,6.9551]
[1744569359090,12.27732,1629.1,1628.8,6.9551]
[1744569359310,6.13862,1629.1,1628.8,6.9551]
[1744569359588,12.27623,1629.2,1628.9,0.69551]
[1744569359794,6.13839,1629.1,1628.8,13.09436]
[1744569360377,6.95472,1629.3,1628.8,6.9551]
[1744569360574,6.13888,1629.0,1628.8,6.9551]
[1744569360894,12.27783,1629.0,1628.8,6.9551]
[1744569361554,6.58853221,1629.1,1628.8,6.9551]
[1744569361793,6.13836,1629.1,1628.8,8.264594]
[1744569361962,12.27692,1629.1,1628.8,8.264594]
[1744569362794,6.13876,1629.0,1628.8,6.9551]
[1744569363005,6.13911,1628.9,1628.8,6.16]
[1744569363359,12.27854,1628.9,1628.7,6.16]
[1744569363554,12.27854,1628.9,1628.4,6.14095]
[1744569363555,12.28159,1628.5,1628.3,6.9834]
[1744569363801,6.14064,1628.5,1628.3,0.8234]
[1744569364102,6.14064,1628.5,1628.3,1.52174]
[1744569364401,6.14029,1628.6,1628.3,7.66308]
[1744569364699,12.28073,1628.6,1628.3,1.52174]
[1744569364864,9.90202,1628.8,1628.4,0.28583063]
[1744569365066,9.90202,1628.8,1628.4,6.20228494]
[1744569365397,7.744,1628.9,1628.5,6.42640063]
[1744569365696,13.88315,1628.9,1628.6,6.89318]
[1744569366071,13.88315,1628.9,1628.7,0.28583063]
[1744569366259,13.88315,1628.9,1628.6,6.89318]
[1744569366458,13.88315,1628.9,1628.7,0.28583063]
[1744569366684,13.88315,1628.9,1628.6,6.89318]
[1744569366881,20.02248,1628.9,1628.7,0.28583063]
[1744569367079,13.88315,1628.9,1628.7,0.28583063]
[1744569367357,13.88315,1628.9,1628.8,0.28583063]
[1744569367557,13.88315,1628.9,1628.6,8.8739433]
[1744569367759,13.88315,1628.9,1628.7,0.28583063]
[1744569367955,13.88315,1628.9,1628.6,2.7338733]
[1744569368161,13.88315,1628.9,1628.7,0.28583063]
[1744569368361,9.13879,1629.0,1628.7,6.13982]
[1744569368590,15.27774,1629.0,1628.8,0.89981263]
[1744569368902,9.13879,1629.0,1628.8,0.89981263]
[1744569369271,15.27778,1629.0,1628.8,0.89981263]
[1744569369603,12.2764,1629.2,1628.9,0.7531]
[1744569369922,6.13819,1629.2,1628.9,6.89204]
[1744569370198,12.27637,1629.2,1629.0,0.28583063]
[1744569370865,6.13835,1629.1,1629.0,0.28583063]
[1744569372932,0.02,1629.4,1629.0,0.28583063]
[1744569373226,0.02,1629.4,1629.3,6.9623]
[1744569373421,0.02,1629.4,1629.3,15.10743583]
[1744569373604,0.02,1629.4,1629.3,15.596075]
[1744569373809,0.02,1629.4,1629.3,15.88190563]
[1744569374184,0.8211,1630.2,1630.0,6.13476]
[1744569374382,7.743,1630.3,1630.0,12.27476]
[1744569374626,13.8769,1630.3,1630.0,8.063476]